Cogmind - Beta 15 @@@ ROGUE MODE // 2025.06.01 @ 16:33:45 Player: CL-1C0 Result: Self-destructed Performance ------------- Evolutions (6) 3000 Regions Visited (9) 1800 Robots Destroyed (57) 285 Value Destroyed (2136) 2136 Prototype IDs (9) 180 Alien Tech Used (0) 0 Bonus (1745) 1745 TOTAL SCORE: 9146 Bonus ------- High Alert Combat Kills 232 Follower Combat Kills 769 Registered with UFD 300 Met Optimus in HQ 500 Friendly Fire -56 Cogmind --------- Core Integrity 717/1150 Matter 213/300 Energy 100/100 System Corruption 0% Temperature Cool (0) Movement Core (50) Location -4/Factory Parts ------- > --- POWER (2) -------- (None) > --- PROPULSION (5) --- (None) > --- UTILITY (8) ------ Advanced Heat Sink Melee Analysis Suite Improved Target Analyzer > --- WEAPON (4) ------- (None) > --- INVENTORY (5) ---- Neutrino Core Makeshift Trap Scanner Improved Force Field Advanced Plasma Cannon CPS Tube (2) Peak State ------------ > --- POWER ------------ Neutrino Core Neutrino Core > --- PROPULSION ------- Overtuned Huge Scrapsphere Overtuned Huge Scrapsphere > --- UTILITY ---------- Scrap Suit Advanced Heat Sink Large Storage Unit Advanced Targeting Computer Enhanced Scrap Shield > --- WEAPON ----------- Heavy Laser Overtuned Coil Gun Overtuned Coil Gun Hypervelocity Gauss Cannon > --- INVENTORY -------- Scrap Suit Surveybot 17 Chip Improved Target Analyzer System Shield Long-range Tractor Beam Variable Charge Gun Advanced Plasma Cannon CPS Tube CPS Tube CPS Tube Vortex Trap Botcube [Rating: 93] Favorites ----------- Power Light Ion Engine Engine Light Ion Engine Power Core Neutrino Core Propulsion Aluminum Leg Treads Light Treads Leg Aluminum Leg Wheel Overtuned Huge Scrapsphere Utility Large Storage Unit Device Scrap Suit Storage Large Storage Unit Processor Advanced Targeting Computer Hackware Makeshift Hacking Suite Protection Scrap Shield Weapon Assault Rifle Energy Gun Wave Gun Energy Cannon Advanced Plasma Cannon Ballistic Gun Assault Rifle Ballistic Cannon Battle Cannon Special Weapon CPS Tube Slashing Weapon Chainsword Build | -11 -10 -10 -7 -5 -5 -5 -5 -4 -4 ------- Run | Yrd Mat Sub Scr Fac Upp Upp War Pro Fac Slots Evolved 12 | . . . . 10 . . . . 2 Power 1 | . . . . 1 . . . . . Propulsion 3 | . . . . 2 . . . . 1 Utility 6 | . . . . 5 . . . . 1 Weapon 2 | . . . . 2 . . . . . Parts Attached 54 | . . 4 9 27 . 1 . 6 7 Power 8 | . . . 1 5 . . . 2 . Engine 2 | . . . 1 1 . . . . . Core 6 | . . . . 4 . . . 2 . Reactor . | . . . . . . . . . . Propulsion 8 | . . . 4 3 . . . . 1 Treads 4 | . . . 2 1 . . . . 1 Leg . | . . . . . . . . . . Wheel 4 | . . . 2 2 . . . . . Hover . | . . . . . . . . . . Flight . | . . . . . . . . . . Utility 26 | . . 2 3 13 . 1 . 2 5 Device 14 | . . . 1 9 . . . 1 3 Storage 1 | . . . 1 . . . . . . Processor 3 | . . . . 1 . . . 1 1 Hackware 3 | . . . . 2 . . . . 1 Protection 5 | . . 2 1 1 . 1 . . . Artifact . | . . . . . . . . . . Weapon 12 | . . 2 1 6 . . . 2 1 Energy Gun 1 | . . . 1 . . . . . . Energy Cannon 1 | . . . . 1 . . . . . Ballistic Gun 4 | . . 1 . 1 . . . 2 . Ballistic Cannon 3 | . . 1 . 2 . . . . . Launcher . | . . . . . . . . . . Special Weapon 3 | . . . . 2 . . . . 1 Impact Weapon . | . . . . . . . . . . Slashing Weapon . | . . . . . . . . . . Piercing Weapon . | . . . . . . . . . . Special Melee Weapon . | . . . . . . . . . . Unidentified Prototypes 3 | . . . . 2 . 1 . . . Parts Lost 28 | . . 1 3 5 . 1 . 5 13 Power 4 | . . . . 1 . . . 1 2 Propulsion 4 | . . . . 1 . . . . 3 Utility 9 | . . 1 1 2 . . . 1 4 Weapon 11 | . . . 2 1 . 1 . 3 4 Highest Loss Streak 13 | . . 1 3 3 . 1 . 4 13 To Critical Strikes 1 | . . . . . . . . 1 . Average Backups 8 | . 6 5 10 10 10 11 11 10 10 Power . | . 1 1 1 . . . . . 1 Propulsion 2 | . 4 3 2 . . . . . . Utility 2 | . . . 2 6 5 6 6 5 4 Weapon . | . 1 . . . 2 2 2 2 2 Tool/Special . | . . . . . . . . . . Unused Backups 13 | . . 2 4 . . . . . 7 Power 3 | . . . 2 . . . . . 1 Propulsion . | . . . . . . . . . . Utility 5 | . . . 2 . . . . . 3 Weapon 3 | . . 2 . . . . . . 1 Tool/Special 2 | . . . . . . . . . 2 Average Slot Usage (%) 82 | . 85 84 91 72 73 74 76 73 76 Engine 9 | . 14 14 14 2 . . . . . Core 3 | . . . . 6 11 11 11 10 9 Treads 3 | . . . 8 7 . . . . 3 Leg 11 | . 28 28 4 . . . . . . Wheel 7 | . . . 15 5 11 11 11 11 9 Device 6 | . . . 5 16 17 11 11 12 13 Storage 5 | . 14 . 11 5 5 5 5 5 5 Processor 1 | . . . . . 5 5 5 9 10 Protection 5 | . . 13 2 2 . 4 5 2 . Energy Gun 1 | . 14 . . 4 3 . . . 3 Ballistic Gun 12 | . 14 16 13 3 11 10 11 10 8 Ballistic Cannon 9 | . . 11 13 4 5 5 5 1 . Peak Build Rating 93 | . 6 10 24 92 86 93 88 89 85 Average Rating 34 | . 6 9 15 70 84 87 88 79 77 On Entrance 45 | 6 6 6 10 20 77 86 88 88 72 Naked Turns . | . . . . . . . . . . Heaviest Build 95 | 12 12 26 42 90 78 89 88 95 59 Greatest Support 70 | 20 20 20 50 70 40 40 40 40 40 Greatest Overweight (x) 15 | . . 1 1 3 1 2 2 2 15 Average Overweight (x) . | . . . . 1 1 2 2 1 1 Largest Inventory Capacity 15 | . 8 8 15 15 15 15 15 15 15 Average Capacity 10 | . 8 5 13 15 15 15 15 15 14 Most Carried 15 | . 6 8 15 15 15 15 14 15 15 Average Carried 10 | . 6 5 12 12 14 14 14 12 12 Final Capacity 15 | 8 8 5 15 15 15 15 15 15 5 Final Carried 15 | 6 6 5 15 14 15 14 14 12 5 Class Distribution -------------------- 68% | Mutant 26% | Scavenger-Scrapper 3% | Gunner Dominant Class ---------------- Mutant | -10/Materials Mutant | -10/Subcaves Mutant | -7/Scraptown Scavenger-Scrapper | -5/Factory Scavenger-Scrapper | -5/Upper Caves Scavenger-Scrapper | -5/Upper Caves Scavenger-Scrapper | -5/Warlord Scavenger-Scrapper | -4/Proximity Caves Scavenger-Scrapper | -4/Factory Resources | -11 -10 -10 -7 -5 -5 -5 -5 -4 -4 ----------- Run | Yrd Mat Sub Scr Fac Upp Upp War Pro Fac Matter Collected 2407 | 200 . 354 89 875 247 48 . 468 126 Remotely 123 | . . . . 123 . . . . . Salvage Created 2297 | . . 206 116 869 125 163 . 583 235 Parts 121 | . . 7 6 50 8 7 . 29 14 Haulers Intercepted 1 | . . . . 1 . . . . . Recyclers Shooed 4 | . . . . 4 . . . . . Parts Field Recycled 43 | . . . 10 33 . . . . . Retrieved Matter 530 | . . . 106 424 . . . . . Parts Self-Destructed 44 | . . 10 . . 8 4 . 22 . Prevented . | . . . . . . . . . . Kills | -11 -10 -10 -7 -5 -5 -5 -5 -4 -4 ------- Run | Yrd Mat Sub Scr Fac Upp Upp War Pro Fac Combat Hostiles Destroyed 49 | . . 7 2 17 5 2 . 13 3 Melee 4 | . . . . . . . . 1 3 Guns 26 | . . . 1 10 5 2 . 8 . Cannons 18 | . . 7 1 6 . . . 4 . AOE 1 | . . . . 1 . . . . . Classes Destroyed 16 | . . 5 2 6 . 1 . 2 . Worker 2 | . . . . 2 . . . . . Builder 2 | . . . . 1 . . . . 1 Hauler 1 | . . . . 1 . . . . . Recycler 1 | . . . . 1 . . . . . Mechanic 1 | . . . . 1 . . . . . Drone 2 | . . . . . . . . 2 . Turret 1 | . . 1 . . . . . . . Swarmer 22 | . . 2 . 10 5 . . 5 . Grunt 8 | . . 1 . 4 . . . 1 2 Brawler 2 | . . . . . . . . 2 . Sentry 3 | . . 1 . . . . . 1 1 Hunter 7 | . . . . 3 . 2 . 2 . Subdweller 3 | . . 3 . . . . . . . Explorer 1 | . . . 1 . . . . . . Scrapper 1 | . . . 1 . . . . . . Samaritan 1 | . . . . . . 1 . . . Best Kill Streak 5 | . . 3 2 4 5 2 . 4 1 Combat Bots Only 5 | . . 3 2 4 5 2 . 4 1 Max Kills in Single Turn 2 | . . 1 1 2 1 1 . 2 1 Gunslinging 1 | . . . . 1 . . . . . Exploded 1 | . . . . 1 . . . . . Melee 1 | . . . . . . . . 1 1 Uniques/NPCs Destroyed . | . . . . . . . . . . Combat | -11 -10 -10 -7 -5 -5 -5 -5 -4 -4 -------- Run | Yrd Mat Sub Scr Fac Upp Upp War Pro Fac Hostile Shots Fired 555 | . 3 83 42 110 21 41 . 139 116 Missed 183 | . 1 34 10 36 7 15 . 45 35 Hits 372 | . 2 49 32 74 14 26 . 94 81 Melee 1 | . . . 1 . . . . . . Projectile 371 | . 2 49 31 74 14 26 . 94 81 AOE 1 | . . . . 1 . . . . . Critical Strikes 10 | . . 1 . 2 . 1 . 3 3 Damage Taken 6418 | . 29 619 577 1495 224 315 . 1398 1761 Core 811 | . 29 111 96 13 17 . . 112 433 Absorbed by Shields . | . . . . . . . . . . Regen/Repaired (Parts) 159 | . . . . 11 . 10 128 . 10 Core Remaining (%) 63 | 100 . . 5 . . . . 85 . Volleys Fired 227 | . . 66 12 79 8 17 . 44 1 Largest 3 | . . 1 2 3 2 3 . 3 1 Hottest 213 | . . 33 75 213 64 115 . 106 . Shots Fired 353 | . . 66 23 116 16 26 . 105 1 Gun 190 | . . . 12 55 16 25 . 82 . Cannon 158 | . . 66 11 57 . 1 . 23 . Launcher . | . . . . . . . . . . Special 5 | . . . . 4 . . . . 1 Kinetic 319 | . . 66 22 84 16 26 . 105 . Thermal 29 | . . . 1 28 . . . . . Explosive . | . . . . . . . . . . Electromagnetic . | . . . . . . . . . . Robot Hit Streak 16 | . . 7 4 16 3 12 . 8 3 Robot Miss Streak 5 | . . 3 3 5 3 3 . 4 . Penetration Max 1 | . . . . 1 1 1 . 1 . Secondary Targets 3 | . . . . 2 . 1 . . . Max Gunslinging Chain 1 | . . . . 1 . 1 . . . Shots Hit Robots 199 | . . 24 12 68 8 18 . 54 15 Core Hits 95 | . . 10 5 35 5 7 . 26 7 Critical Kills 6 | . . . . 3 . . . 3 . Critical Parts Destroyed 11 | . . . . 3 3 1 . 4 . Critical Strikes 28 | . . 3 . 12 3 1 . 7 2 Destroy 17 | . . . . 6 3 1 . 7 . Blast 9 | . . 3 . 6 . . . . . Sever 2 | . . . . . . . . . 2 Melee Attacks 23 | . . . . . . . . 3 20 Impact . | . . . . . . . . . . Slashing 23 | . . . . . . . . 3 20 Piercing . | . . . . . . . . . . Sneak Attacks 2 | . . . . . . . . . 2 Combat Hostiles . | . . . . . . . . . . Follow-up Attacks . | . . . . . . . . . . Damage Inflicted 5700 | . . 579 229 2507 274 444 . 1100 567 Guns 2848 | . . . 86 1132 274 434 . 922 . Cannons 1937 | . . 579 139 1073 . 10 . 136 . Explosions 302 | . . . . 302 . . . . . Melee 609 | . . . . . . . . 42 567 Ramming 4 | . . . 4 . . . . . . Kinetic 4245 | . . 579 203 1687 274 444 . 1058 . Thermal 647 | . . . 22 625 . . . . . Explosive 195 | . . . . 195 . . . . . Electromagnetic . | . . . . . . . . . . Impact . | . . . . . . . . . . Slashing 609 | . . . . . . . . 42 567 Piercing . | . . . . . . . . . . Highest Corruption 1 | . . . 1 1 1 1 1 . . Average Corruption 1 | . . . 1 1 1 1 1 . . Corruption Purged . | . . . . . . . . . . Corruption Blocked . | . . . . . . . . . . Effects 17 | . . . . 10 . 6 1 . . Message Errors 5 | . . . . 2 . 3 . . . Matter Fused 7 | . . . . 4 . 3 . . . Heat Flow Errors 1 | . . . . 1 . . . . . Energy Discharges 2 | . . . . 2 . . . . . Data Loss (minor) 2 | . . . . 1 . . 1 . . Overload Shots . | . . . . . . . . . . Overflow Damage 8 | . . . . 8 . . . . . Projectiles 8 | . . . . 8 . . . . . Explosions . | . . . . . . . . . . Melee . | . . . . . . . . . . Knockbacks 10 | . . 2 2 5 . . . 1 . Impact . | . . . . . . . . . . Kinetic 10 | . . 2 2 5 . . . 1 . Secondary . | . . . . . . . . . . Self-Inflicted Damage . | . . . . . . . . . . Shots . | . . . . . . . . . . Rammed 1 | . . . 1 . . . . . . Targets Rammed 1 | . . . 1 . . . . . . Kicked . | . . . . . . . . . . Crushed . | . . . . . . . . . . Highest Temperature 311 | . . 3 287 132 21 28 . 311 . Average Temperature 96 | . . 3 117 42 15 16 . 127 . Received Heat Transfer 1091 | . 18 129 252 279 . . . 61 352 Effects 2 | . . . . . . . . 2 . Energy Bleed 2 | . . . . . . . . 2 . Siege Activations . | . . . . . . . . . . Martial Activations . | . . . . . . . . . . Shielding Activations . | . . . . . . . . . . Robots Disrupted . | . . . . . . . . . . Combat Hostiles . | . . . . . . . . . . Robots Corrupted . | . . . . . . . . . . Combat Hostiles . | . . . . . . . . . . Parts Fried . | . . . . . . . . . . Impact Corruptions . | . . . . . . . . . . Robots Melted . | . . . . . . . . . . Combat Hostiles . | . . . . . . . . . . Parts Melted 4 | . . . 1 3 . . . . . Heat Transferred 924 | . . . 37 887 . . . . . Parts Sabotaged . | . . . . . . . . . . Parts Stolen . | . . . . . . . . . . Parts Stripped . | . . . . . . . . . . Power Chain Reactions . | . . . . . . . . . . Alert | -11 -10 -10 -7 -5 -5 -5 -5 -4 -4 ------- Run | Yrd Mat Sub Scr Fac Upp Upp War Pro Fac Maximum Alert Level 3 | . . . . 3 . . . . 2 Low Security (%) 41 | . 100 . . 44 . . . . 1 Level 1 6 | . . . . 4 . . . . 14 Level 2 46 | . . . . 42 . . . . 83 Level 3 5 | . . . . 7 . . . . . Level 4 . | . . . . . . . . . . Level 5 . | . . . . . . . . . . High Security . | . . . . . . . . . . Max Security . | . . . . . . . . . . Peak Influence 896 | . . . . 896 . . . . 503 Initial 468 | . . . . . . . . . 468 Average 307 | . . . . 311 . . . . 441 Influence Increases 2561 | . . 140 . 1422 110 50 . 265 574 Destroy 0b10 Robot/C 1240 | . . 100 . 720 100 40 . 220 60 Destroy 0b10 Robot/NC 60 | . . . . 45 . . . 10 5 Destroy Leader 178 | . . 10 . 118 10 10 . 20 10 Allied During Kill 193 | . . . . 193 . . . . . Successful Hack 25 | . . . . 25 . . . . . Select Force Hacks 30 | . . . . . . . . . 30 Disable Machine 90 | . . . . 90 . . . . . Destroy Structure 220 | . . . . 216 . . . . 4 Advance Influence 450 | . . . . . . . . . 450 Lose Combat Pursuer 75 | . . 30 . 15 . . . 15 15 Influence Decreases 2389 | . . 140 . 526 412 346 298 236 431 Entered New Map 755 | . . . . . 332 114 298 . 11 Time Decay 1144 | . . 130 . 366 80 222 . 206 140 Search Patrol Dispatched 150 | . . . . . . . . . 150 Lost Part 220 | . . 10 . 40 . 10 . 30 130 Lost Ally 120 | . . . . 120 . . . . . Squads Dispatched 12 | . . . . 10 . . . . 2 Investigation 4 | . . . . 2 . . . . 2 Extermination 2 | . . . . 2 . . . . . Reinforcement 5 | . . . . 5 . . . . . Assault . | . . . . . . . . . . Garrison 1 | . . . . 1 . . . . . Intercept . | . . . . . . . . . . Searches Triggered 1 | . . . . . . . . . 1 Construction Impeded 2 | . . . . 2 . . . . . Haulers Reinforced 3 | . . . . 3 . . . . . Active Scanning Responses . | . . . . . . . . . . Cargo Convoy Interrupts . | . . . . . . . . . . Stealth | -11 -10 -10 -7 -5 -5 -5 -5 -4 -4 --------- Run | Yrd Mat Sub Scr Fac Upp Upp War Pro Fac Distress Signals 4 | . . . . 2 . . . . 2 Communications Jammed . | . . . . . . . . . . Distress Signals . | . . . . . . . . . . Times Spotted 108 | . 3 23 9 40 5 2 . 16 10 Peak Tracking Total 6 | . 3 6 4 6 5 2 . 6 6 Tactical Retreats 4 | . . 1 . 1 . . . 1 1 Traps | -11 -10 -10 -7 -5 -5 -5 -5 -4 -4 ------- Run | Yrd Mat Sub Scr Fac Upp Upp War Pro Fac Traps Triggered 1 | . . . . . . . . . 1 Indirectly . | . . . . . . . . . . Trap Hack Attempts . | . . . . . . . . . . Triggered . | . . . . . . . . . . Disarmed . | . . . . . . . . . . Reprogrammed . | . . . . . . . . . . Reused . | . . . . . . . . . . Traps Extracted . | . . . . . . . . . . Installed 1 | . . . . . . . . . 1 Triggered . | . . . . . . . . . . Most Traps Carried 1 | . . . 1 1 1 1 1 1 1 Machines | -11 -10 -10 -7 -5 -5 -5 -5 -4 -4 ---------- Run | Yrd Mat Sub Scr Fac Upp Upp War Pro Fac Machines Disabled 6 | . . . . 6 . . . . . Max in Single Turn 2 | . . . . 2 . . . . . Garrison Access 1 | . . . . 1 . . . . . Machines Repaired . | . . . . . . . . . . Machines Dismantled . | . . . . . . . . . . Machines Sabotaged . | . . . . . . . . . . Overloaded Fab Kills . | . . . . . . . . . . Hacking | -11 -10 -10 -7 -5 -5 -5 -5 -4 -4 --------- Run | Yrd Mat Sub Scr Fac Upp Upp War Pro Fac Machines Accessed 14 | . . 1 4 5 . 1 . . 3 Terminals 3 | . . . . 2 . . . . 1 Fabricators . | . . . . . . . . . . Repair Stations . | . . . . . . . . . . Recycling Units 2 | . . . . 2 . . . . . Scanalyzers 1 | . . . . . . . . . 1 Garrison Access 2 | . . . . 1 . . . . 1 Total Hacks 58 | . . 3 33 14 . 1 . . 7 Successful 48 | . . 3 33 9 . 1 . . 2 Failed 10 | . . . . 5 . . . . 5 Catastrophic 2 | . . . . 1 . . . . 1 Database Lockouts . | . . . . . . . . . . Manual 17 | . . . . 13 . . . . 4 Terminals 12 | . . . . 9 . . . . 3 Fabricators . | . . . . . . . . . . Repair Stations . | . . . . . . . . . . Recycling Units 4 | . . . . 4 . . . . . Scanalyzers 1 | . . . . . . . . . 1 Garrison Access 4 | . . . . 1 . . . . 3 Terminal Hacks 41 | . . 3 33 4 . 1 . . . Record 35 | . . 3 32 . . . . . . Open Door 1 | . . . . . . 1 . . . Branch Access Points 1 | . . . . 1 . . . . . Terminal Index 1 | . . . . 1 . . . . . Fabricator Index 1 | . . . . 1 . . . . . Recycling Unit Index 1 | . . . . 1 . . . . . Proto ID Catalog 1 | . . . 1 . . . . . . Fabricator Hacks . | . . . . . . . . . . Repair Station Hacks . | . . . . . . . . . . Recycling Unit Hacks . | . . . . . . . . . . Scanalyzer . | . . . . . . . . . . Garrison Access Hacks 1 | . . . . 1 . . . . . Seal Access 1 | . . . . 1 . . . . . Unauthorized Hacks 6 | . . . . 4 . . . . 2 Terminals 4 | . . . . 3 . . . . 1 Botnet 2 | . . . . 1 . . . . 1 Operators 2 | . . . . 2 . . . . . Fabricators . | . . . . . . . . . . Repair Stations . | . . . . . . . . . . Recycling Units 1 | . . . . 1 . . . . . Fedlink 1 | . . . . 1 . . . . . Scanalyzers 1 | . . . . . . . . . 1 Extract 1 | . . . . . . . . . 1 Garrison Access . | . . . . . . . . . . Data Cores Recovered . | . . . . . . . . . . Used . | . . . . . . . . . . Hacking Detections 5 | . . . . 3 . . . . 2 Full Trace Events 2 | . . . . 1 . . . . 1 Feedback Events . | . . . . . . . . . . Feedback Blocked . | . . . . . . . . . . Robot Schematics Acquired . | . . . . . . . . . . Robots Built . | . . . . . . . . . . Authchips . | . . . . . . . . . . Time . | . . . . . . . . . . Total Robot Build Rating . | . . . . . . . . . . Part Schematics Acquired 4 | . . . . . . . . . 4 Parts Built . | . . . . . . . . . . Authchips . | . . . . . . . . . . Time . | . . . . . . . . . . Total Part Build Rating . | . . . . . . . . . . Parts Repaired . | . . . . . . . . . . Time . | . . . . . . . . . . Parts Recycled . | . . . . . . . . . . Recycled Matter . | . . . . . . . . . . Retrieved Matter . | . . . . . . . . . . Retrieved Components . | . . . . . . . . . . Parts Scanalyzed . | . . . . . . . . . . Part Schematics Acquired . | . . . . . . . . . . Parts Damaged . | . . . . . . . . . . Bothacking | -11 -10 -10 -7 -5 -5 -5 -5 -4 -4 ------------ Run | Yrd Mat Sub Scr Fac Upp Upp War Pro Fac Used RIF Installer . | . . . . . . . . . . Robots Hacked . | . . . . . . . . . . Non-combat . | . . . . . . . . . . Combat . | . . . . . . . . . . Robot Hacks Applied . | . . . . . . . . . . Relay Couplers Released . | . . . . . . . . . . Fabnet Peak Effective % . | . . . . . . . . . . Robots Rewired . | . . . . . . . . . . Allies Hacked . | . . . . . . . . . . Hacks Repelled . | . . . . . . . . . . Allies | -11 -10 -10 -7 -5 -5 -5 -5 -4 -4 -------- Run | Yrd Mat Sub Scr Fac Upp Upp War Pro Fac Total Allies 6 | . . . 1 5 . . . . . Largest Group 6 | . . . 1 6 . . . . . Highest-Rated Group 286 | . . . 52 286 . . . . . Highest-Rated Ally 52 | . . . 52 52 . . . . . Total Orders . | . . . . . . . . . . Ally Attacks 149 | . . . 5 144 . . . . . Total Damage 2717 | . . . 75 2642 . . . . . Kills 22 | . . . . 22 . . . . . Allies Corrupted . | . . . . . . . . . . Allies Melted 1 | . . . 1 . . . . . . Intel | -11 -10 -10 -7 -5 -5 -5 -5 -4 -4 ------- Run | Yrd Mat Sub Scr Fac Upp Upp War Pro Fac Active Infowar (turns) 1511 | . . . . 64 163 420 221 401 242 Structural 1511 | . . . . 64 163 420 221 401 242 Traps 14 | . . . . . . . . . 14 Robot Analysis Total . | . . . . . . . . . . Derelict Logs Recovered 2 | . . . . . . . . 2 . Drone Launches . | . . . . . . . . . . Drone Recoveries . | . . . . . . . . . . Exploration | -11 -10 -10 -7 -5 -5 -5 -5 -4 -4 ------------- Run | Yrd Mat Sub Scr Fac Upp Upp War Pro Fac Turns Passed 8313 | . 143 2826 2576 1067 163 478 221 541 298 Spaces Moved 5436 | 1 120 1392 1657 653 182 493 246 471 221 Core 5 | . . . . . . . . . 5 Treads 304 | . . . 97 207 . . . . . Legs 1757 | 1 120 1392 244 . . . . . . Wheels 3370 | . . . 1316 446 182 493 246 471 216 Hover . | . . . . . . . . . . Flight . | . . . . . . . . . . Fastest Speed 80 | 120 120 120 100 80 80 90 90 80 80 Average Speed 126 | 120 120 184 117 124 80 90 90 82 93 Slowest Speed 800 | 120 120 190 190 240 80 90 90 90 800 Overloaded Moves . | . . . . . . . . . . Propulsion Burnouts . | . . . . . . . . . . Robots Hopped . | . . . . . . . . . . Potential Cave-ins . | . . . . . . . . . . Cave-ins Triggered . | . . . . . . . . . . Exploration Rate (%) 41 | 2 26 65 88 20 36 63 36 67 7 Regions Visited 9 Branch Regions 6 Pre-discovered Areas 6 | . . 1 5 . . . . . . Known Exits Taken 4 | . . . . 1 1 . 1 1 . Unknown Exits Taken 5 | 1 1 1 1 . . 1 . . . Scrap Searched 9 | . . 2 4 . 1 1 . 1 . Spaces Dug 19 | . . 10 . 7 . . . . 2 Terrain Destroyed 150 | . . 11 2 85 16 11 . 23 2 Melee 2 | . . . . . . . . . 2 Projectile 106 | . . 11 2 45 16 11 . 21 . AOE 40 | . . . . 40 . . . . . Terrain Rammed . | . . . . . . . . . . Walls Destroyed . | . . . . . . . . . . Machines Disabled . | . . . . . . . . . . Actions | -11 -10 -10 -7 -5 -5 -5 -5 -4 -4 --------- Run | Yrd Mat Sub Scr Fac Upp Upp War Pro Fac Total 6563 | . 119 1588 2258 816 191 514 245 551 281 Wait 732 | . . 116 556 30 . . . 13 17 Move 5428 | . 119 1391 1657 652 181 492 245 470 221 Hop . | . . . . . . . . . . Pick Up 33 | . . 3 16 8 1 1 . 2 2 Fast Attach 24 | . . 2 2 14 . . . 4 2 Attach 26 | . . 1 5 10 1 1 . 7 1 Detach 9 | . . . . 5 . . . 3 1 Swap 15 | . . 1 2 5 . 1 . 2 4 Drop 34 | . . 5 8 13 . 2 . 3 3 Fire 227 | . . 66 12 79 8 17 . 44 1 Melee 23 | . . . . . . . . 3 20 Ram . | . . . . . . . . . . Kick . | . . . . . . . . . . Crush . | . . . . . . . . . . Escape Stasis 8 | . . . . . . . . . 8 Rewire . | . . . . . . . . . . Trap 1 | . . . . . . . . . 1 Miscellaneous 3 | . . 3 . . . . . . . Route ------- -11/Scrapyard -10/Materials (discovered 2 exits: [*Mat] / *Sub) -10/Subcaves (discovered 4 exits: [*Mat x2] / [*Rec] / *Scr) -7/Scraptown (discovered 2 exits: *Fac x2) -5/Factory (discovered 3 exits: Fac / *Upp x2) -5/Upper Caves -5/Upper Caves -5/Warlord -4/Proximity Caves -4/Factory (discovered 3 exits: Res x3) History --------- Turn | Location | Event 1 | -11/Scrapyard | Discovered new exit (range 0) 1 | -11/Scrapyard | Entered Materials 66 | -10/Materials | Discovered new exit (range 8) 132 | -10/Materials | Discovered new exit (range 6) 144 | -10/Materials | Entered Subcaves 145 | -10/Subcaves | Approached by a straggling Scientist 309 | -10/Subcaves | Build established: Mutant 399 | -10/Subcaves | Discovered new exit (range 12) 497 | -10/Subcaves | A swath of the cavern ceiling suddenly collapsed 788 | -10/Subcaves | Discovered new exit (range 6) 874 | -10/Subcaves | Scientist uncovered a shortcut to Scraptown 1616 | -10/Subcaves | Core integrity fell below 50% 2161 | -10/Subcaves | Learned location of Zion (-7) 2161 | -10/Subcaves | Met a Zionite searching for "candidates" 2674 | -10/Subcaves | Shifting Twisted Machinery released Mak. Spear 2786 | -10/Subcaves | Visited Clippyterm 2792 | -10/Subcaves | Learned Factory trap positions 2919 | -10/Subcaves | Discovered new exit (range 14) 2970 | -10/Subcaves | Entered Scraptown 3115 | -7/Scraptown | Visited UFD Registry 3115 | -7/Scraptown | Registered with UFD as "Fissioncycle" 3254 | -7/Scraptown | Visited Junk Repository 3339 | -7/Scraptown | Delivered Scrap Shield to a Scientist 3488 | -7/Scraptown | Visited Scrapoid Pod Storage 3493 | -7/Scraptown | Found Scrapoid Pod 3521 | -7/Scraptown | Visited Botcube Research 3527 | -7/Scraptown | Found Botcube 3543 | -7/Scraptown | Visited Scrap Suit Storage 3549 | -7/Scraptown | Found Scrap Suit 3566 | -7/Scraptown | Visited A0-MCA Data Center 3582 | -7/Scraptown | Visited Cartography Club 3617 | -7/Scraptown | Found Surveybot 17 Chip 3647 | -7/Scraptown | Found Deep Structural Scanner 3658 | -7/Scraptown | Learned location of 1 exit from Upper Caves 3658 | -7/Scraptown | Learned location of 3 exits from Lower Caves 3658 | -7/Scraptown | Learned Storage emergency access door positions 3658 | -7/Scraptown | Learned 4 Armory zone layouts 3658 | -7/Scraptown | Learned 16 Lower Caves zone layouts 3658 | -7/Scraptown | Learned 12 Proximity Caves zone layouts 3658 | -7/Scraptown | Learned 4 Mines zone layouts 3658 | -7/Scraptown | Learned 4 Access zone layouts 3658 | -7/Scraptown | Learned 16 Research zone layouts 3658 | -7/Scraptown | Learned 12 Research zone layouts 3658 | -7/Scraptown | Learned 16 Factory zone layouts 3658 | -7/Scraptown | Learned 16 Materials zone layouts 3658 | -7/Scraptown | Learned location of Archives (-4) 3658 | -7/Scraptown | Learned location of Cetus (-4) 3658 | -7/Scraptown | Learned location of Lower Caves (-6) 3658 | -7/Scraptown | Learned location of Recycling (-7) 3713 | -7/Scraptown | Visited Chapter 10 3772 | -7/Scraptown | Visited Science Guys 3840 | -7/Scraptown | Visited Research Penetration Think Tank 3871 | -7/Scraptown | Visited Fellowship of the Rings 4074 | -7/Scraptown | Discovered new exit (range 13) 4176 | -7/Scraptown | Visited Symbiants 4215 | -7/Scraptown | Visited Cyclists 4222 | -7/Scraptown | Entered Cyclist Reading Room 4253 | -7/Scraptown | Visited Assassins FH 4798 | -7/Scraptown | Found Scrap Suit 5417 | -7/Scraptown | Met Optimus 5417 | -7/Scraptown | Accepted into 0bPrime 5488 | -7/Scraptown | Civil war broke out across Scraptown 5493 | -7/Scraptown | Discovered new exit (range 5) 5519 | -7/Scraptown | Botcube activated 5539 | -7/Scraptown | Botcube completed mutation into hovering form, armed with 1 gun, 1 melee weapon. 5545 | -7/Scraptown | Core integrity fell below 20% 5546 | -7/Scraptown | Entered Factory 5546 | -5/Factory | Accompanied by 1 ally 5546 | -5/Factory | Evolved 10 slots: Power x1, Propulsion x2, Utility x5, Weapon x2 5547 | -5/Factory | Identified exit to Upper Caves 5548 | -5/Factory | Identified exit to Factory 5549 | -5/Factory | Loaded intel: 117 trap records 5558 | -5/Factory | Lost 5 allies 5568 | -5/Factory | Lost 3 parts (1u2w) 5978 | -5/Factory | Scrapoid Pod released 05F05-D (x5) 6027 | -5/Factory | Garrison activated, responded to threat 6066 | -5/Factory | Found Scrap Suit 6080 | -5/Factory | Lost 3 allies 6356 | -5/Factory | Build established: Scavenger-Scrapper 6436 | -5/Factory | Loaded intel: 8 recycling unit locations 6507 | -5/Factory | Found Scrap Suit 6553 | -5/Factory | Found Botcube 6613 | -5/Factory | Entered Upper Caves 6614 | -5/Upper Caves | Identified exit to Upper Caves 6615 | -5/Upper Caves | UFD Scientist delivered a prototype 6629 | -5/Upper Caves | Found Prototype Protection 6631 | -5/Upper Caves | Lost 3 parts (2u1w) 6776 | -5/Upper Caves | Entered another Upper Caves area 6777 | -5/Upper Caves | Identified Enh. Scrap Shield 6876 | -5/Upper Caves | Entered an active Warlord outpost 6982 | -5/Upper Caves | Discovered new exit (range 18) 7012 | -5/Upper Caves | Encountered a Warlord checkpoint 7254 | -5/Upper Caves | Entered Warlord 7255 | -5/Warlord | Identified exit to Proximity Caves 7285 | -5/Warlord | System corruption cleaned by Quarantine Array 7475 | -5/Warlord | Entered Proximity Caves 7477 | -4/Proximity Caves | Spotter reported a threat 7478 | -4/Proximity Caves | Spotter reported a threat 7511 | -4/Proximity Caves | Attracted the attention of an 0b10 checkpoint 7662 | -4/Proximity Caves | Spotter reported a threat 7828 | -4/Proximity Caves | Learned Research trap positions 7921 | -4/Proximity Caves | Lost 4 parts (1p1u2w) 7987 | -4/Proximity Caves | Discovered exit to Factory (range 13) 8016 | -4/Proximity Caves | Entered Factory 8016 | -4/Factory | Evolved 2 slots: Propulsion x1, Utility x1 8017 | -4/Factory | Identified exit to Research 8251 | -4/Factory | Spotted B-86 Titan 8266 | -4/Factory | Search patrols dispatched 8314 | -4/Factory | Self-destructed Last Messages --------------- 08281_ B-86 Titan exits siege mode. 08281_ Imp. Treads destroyed. 08281_ Penetrated by Slug. 08281_ Ovr. Huge Scrapsphere destroyed. 08284_ Knocked back. 08284_ U-05 Engineer builds a Wall. 08288_ Lgt. Nuclear Core destroyed. 08288_ System Shield destroyed. 08288_ U-05 Engineer builds a Wall. 08289_ Acquired 5 matter. 08297_ Critical hit (Burn: +50). 08303_ Ovr. Huge Scrapsphere recovered from malfunction. 08303_ Ovr. Huge Scrapsphere destroyed. 08303_ Neutrino Core destroyed. 08310_ Slug penetrates Wall. 08310_ Wave Gun destroyed. 08313_ Lrg. Storage Unit destroyed. 08313_ Penetrated by Slug. 08313_ Chainsword destroyed. 08314_ B-86 Titan exits siege mode. Map ----- +----------------------------------------------------+ | ########## ! * | | # # | | # # | | #"""" # """ | | ??""" # """ | | ?"""" # """ ########## | | ?"""" # "" ########## | | #"""" # "" ########## | | #"""" # ########## | | #"""" + """ # ?????? | | # # """ # ""?????? | | #"""" # """ # ""?????? | | #"""" # """ # ""?????? | | #"""" #% + ?????? | | #"""" # # ""?????? | | ??""" # """ # ""?????? | | #"""" # """ # """ ???? | | #"""" # % """ # ???? | | # # "" ######???? | | ########## "" ### ???? | | ### ! # # " ???? | | ### g # """ # ???? | | ### g/ """ + ???? | | ###!=!g g# """ # ???? | | ###[=!! # "" # ???? | | ###!@!!& # % "" ####???? | | #####[#### ####???? | | ######|##" """ ####???? | | #######;## """ ####???? | | # ; """ ######?? | | ?????? # #?? | | ?????? + = #?? | | ?????? # % #?? | | ?????? # ^ #?? | | ?????? # u #?? | | ??????#######;BB## #### #?? | | ??????########BB## #????? +?? | | ??????############ #????????? | | ??????############ #????????? | | ????????????????????????????? | | ????????????????????????????? | | ????????????????????????????? | | ????????????????????????????? | | ????????????????????????????? | | ????????????????????????????? | | ????????????????????????????? | | ????????????????????????????? | | ????????????????????????????? | | ????????????????????????????? | | ????????????????????????????? | +----------------------------------------------------+ Best States ------------- Heat Dissipation 78 Energy Generation 33 Energy Capacity 530 Matter Stores 300 Matter Capacity 300 Sight Range 16 Terrain Scan Density 10 Armor Coverage 800 Evasion (%) 55 Targeting Accuracy 8 Melee Accuracy 5 Target Analysis 6 Recoil Reduction 3 Matter Filtering 50 Offensive Hacking 22 Defensive Hacking 10 Item Schematics ----------------- Triangulator | -4/Factory | Extracted Impulse Thruster | -4/Factory | Extracted Adv. ECM Suite | -4/Factory | Extracted Imp. Hacking Suite | -4/Factory | Extracted Robot Schematics ------------------ None Fabricated ------------ Nothing Repaired ---------- Nothing Alien Tech Used ----------------- None Achievements -------------- None Challenges ------------ None Game ------ Seed AssaultRestorationMultitool Manual? 0 Play Time 01:03:03 Cumulative 509.1 hours Start 2025.06.01 @ 05:32:04 End 2025.06.01 @ 16:33:45 Sessions 3 Manual Loads 0 Difficulty Rogue Special Mode None Game No. 559 Rogue 559 Adventurer 0 Explorer 0 Win Type - Total 14 Types 9/0/4/1/0/0/0/0/0/0 Lore% 81 Gallery% 80 Achievement% 82 Wizard Run 0 Options --------- Layout 0 ASCII 0 Keyboard 0 Movement Numpad Keybinds 0 Fullscreen 1 Font 18/SmallcapsGlow Map View 76x50 Zoom Use 0% Tactical HUD 1 Map Filters NONE Filters NONE Steam 1 RUN: 66bf8e46-ea9b-418e-bc30-7a70584268d8